[Event "*** Titled Tuesday Blitz"]
[Site "Chess.com"]
[Date "2020.05.05"]
[Round "1"]
[White "Phenix2k"]
[Black "MishkaFighter"]
[Result "1-0"]
[WhiteElo "2289"]
[BlackElo "2585"]
[TimeControl "180+1"]
[EndTime "10:05:46 PDT"]
[Termination "Phenix2k won by checkmate"]

1. d4 {[%clk 0:03:00.9]} 1... d6 {[%clk 0:02:57.2]} 2. Nf3 {[%clk 0:02:58.2]}
2... Bg4 {[%clk 0:02:53.8]} 3. c4 {[%clk 0:02:57.1]} 3... Nf6 {[%clk 0:02:50.7]}
4. g3 {[%clk 0:02:52.7]} 4... Bxf3 {[%clk 0:02:50.2]} 5. exf3 {[%clk 0:02:53.6]}
5... g6 {[%clk 0:02:51.1]} 6. Bg2 {[%clk 0:02:51.9]} 6... Bg7 {[%clk 0:02:51.5]}
7. O-O {[%clk 0:02:51.2]} 7... O-O {[%clk 0:02:50.7]} 8. Nc3 {[%clk 0:02:50.9]}
8... c6 {[%clk 0:02:46.7]} 9. d5 {[%clk 0:02:51]} 9... cxd5 {[%clk 0:02:40.4]}
10. cxd5 {[%clk 0:02:49.2]} 10... Na6 {[%clk 0:02:41]} 11. Be3 {[%clk
0:02:45.4]} 11... Qa5 {[%clk 0:02:37.4]} 12. f4 {[%clk 0:02:36.3]} 12... Rfc8
{[%clk 0:02:27.3]} 13. Bd4 {[%clk 0:02:34.8]} 13... b5 {[%clk 0:02:17.2]} 14. a3
{[%clk 0:02:30]} 14... Nd7 {[%clk 0:02:04.2]} 15. Bxg7 {[%clk 0:02:25.6]} 15...
Kxg7 {[%clk 0:02:05.1]} 16. b4 {[%clk 0:02:21.4]} 16... Qb6 {[%clk 0:02:03.7]}
17. Rc1 {[%clk 0:02:16.8]} 17... Rc4 {[%clk 0:01:59.8]} 18. Re1 {[%clk
0:02:11.7]} 18... Rac8 {[%clk 0:01:29.7]} 19. Rxe7 {[%clk 0:01:51.7]} 19... Rxc3
{[%clk 0:01:29]} 20. Rxc3 {[%clk 0:01:48.4]} 20... Rxc3 {[%clk 0:01:29.9]} 21.
Rxd7 {[%clk 0:01:47.6]} 21... Rxa3 {[%clk 0:01:28.9]} 22. f5 {[%clk 0:01:35.7]}
22... Ra2 {[%clk 0:01:24.3]} 23. f6+ {[%clk 0:01:32.2]} 23... Kh6 {[%clk
0:01:05.4]} 24. Qf3 {[%clk 0:01:23.9]} 24... Qd4 {[%clk 0:00:57.8]} 25. h4
{[%clk 0:01:04]} 25... Nxb4 {[%clk 0:00:51.5]} 26. g4 {[%clk 0:01:00.6]} 26...
g5 {[%clk 0:00:41.8]} 27. hxg5+ {[%clk 0:00:58.2]} 27... Kxg5 {[%clk 0:00:37.8]}
28. Qf5+ {[%clk 0:00:57.9]} 28... Kh4 {[%clk 0:00:35.9]} 29. Qh5# {[%clk
0:00:57.9]} 1-0

[Event "*** Titled Tuesday Blitz"]
[Site "Chess.com"]
[Date "2020.05.05"]
[Round "1"]
[White "giantslayer83"]
[Black "AlexZambrano"]
[Result "1-0"]
[WhiteElo "2686"]
[BlackElo "2350"]
[TimeControl "180+1"]
[EndTime "10:05:47 PDT"]
[Termination "giantslayer83 won by checkmate"]

1. d4 {[%clk 0:02:55.5]} 1... Nf6 {[%clk 0:02:57]} 2. Bg5 {[%clk 0:02:55]} 2...
d5 {[%clk 0:02:56.4]} 3. e3 {[%clk 0:02:53.9]} 3... g6 {[%clk 0:02:56.4]} 4.
Bxf6 {[%clk 0:02:46.4]} 4... exf6 {[%clk 0:02:55.7]} 5. g3 {[%clk 0:02:44.4]}
5... Bd6 {[%clk 0:02:42.5]} 6. c4 {[%clk 0:02:43.7]} 6... dxc4 {[%clk 0:02:37]}
7. Bxc4 {[%clk 0:02:44.6]} 7... c6 {[%clk 0:02:36.4]} 8. Nc3 {[%clk 0:02:44.1]}
8... O-O {[%clk 0:02:35]} 9. h4 {[%clk 0:02:41.2]} 9... Be6 {[%clk 0:02:33.7]}
10. Bxe6 {[%clk 0:02:38.2]} 10... fxe6 {[%clk 0:02:33.5]} 11. h5 {[%clk
0:02:38.8]} 11... Qe7 {[%clk 0:02:26.2]} 12. hxg6 {[%clk 0:02:37.9]} 12... hxg6
{[%clk 0:02:26.5]} 13. Nf3 {[%clk 0:02:37.3]} 13... Kg7 {[%clk 0:02:17.7]} 14.
Qc2 {[%clk 0:02:36.6]} 14... Nd7 {[%clk 0:01:56.2]} 15. O-O-O {[%clk 0:02:27.5]}
15... Rh8 {[%clk 0:01:56.4]} 16. Ne4 {[%clk 0:02:27]} 16... Nb6 {[%clk
0:01:25.4]} 17. Kb1 {[%clk 0:02:04.1]} 17... Rxh1 {[%clk 0:00:37.4]} 18. Rxh1
{[%clk 0:02:02.1]} 18... e5 {[%clk 0:00:34.6]} 19. Nxd6 {[%clk 0:01:58]} 19...
Qxd6 {[%clk 0:00:34.6]} 20. dxe5 {[%clk 0:01:58.3]} 20... fxe5 {[%clk
0:00:33.9]} 21. Ng5 {[%clk 0:01:58.4]} 21... Nd5 {[%clk 0:00:18.5]} 22. Rh7+
{[%clk 0:01:53.5]} 22... Kg8 {[%clk 0:00:14.5]} 23. Rxb7 {[%clk 0:01:53.1]}
23... Rf8 {[%clk 0:00:07.7]} 24. a3 {[%clk 0:01:51.9]} 24... Nb6 {[%clk
0:00:03]} 25. Qb3+ {[%clk 0:01:32.1]} 25... Kh8 {[%clk 0:00:02]} 26. Rh7# {[%clk
0:01:31.2]} 1-0

[Event "*** Titled Tuesday Blitz"]
[Site "Chess.com"]
[Date "2020.05.05"]
[Round "1"]
[White "putra48"]
[Black "ChronicUnhappiness"]
[Result "1-0"]
[WhiteElo "2624"]
[BlackElo "2304"]
[TimeControl "180+1"]
[EndTime "10:05:47 PDT"]
[Termination "putra48 won by resignation"]

1. e4 {[%clk 0:02:59.8]} 1... d6 {[%clk 0:02:58.8]} 2. d4 {[%clk 0:02:59.4]}
2... Nf6 {[%clk 0:02:58]} 3. Nc3 {[%clk 0:02:59.2]} 3... g6 {[%clk 0:02:57.6]}
4. Nf3 {[%clk 0:02:53.8]} 4... Bg7 {[%clk 0:02:57.3]} 5. h3 {[%clk 0:02:54]}
5... O-O {[%clk 0:02:56.8]} 6. Be3 {[%clk 0:02:54.9]} 6... Nc6 {[%clk
0:02:44.4]} 7. Be2 {[%clk 0:02:42.2]} 7... e5 {[%clk 0:02:43.8]} 8. dxe5 {[%clk
0:02:28.4]} 8... Nxe5 {[%clk 0:02:43.2]} 9. O-O {[%clk 0:02:25.5]} 9... Nxf3+
{[%clk 0:02:31.9]} 10. Bxf3 {[%clk 0:02:25]} 10... Re8 {[%clk 0:02:32.8]} 11.
Qd2 {[%clk 0:02:24.1]} 11... Bd7 {[%clk 0:02:28.7]} 12. Rfe1 {[%clk 0:02:23.1]}
12... Bc6 {[%clk 0:02:28.3]} 13. Bd4 {[%clk 0:02:23.4]} 13... Nd7 {[%clk
0:02:25.6]} 14. Bxg7 {[%clk 0:02:21.6]} 14... Kxg7 {[%clk 0:02:26.5]} 15. g3
{[%clk 0:02:21.8]} 15... Qf6 {[%clk 0:02:11.4]} 16. Bg2 {[%clk 0:02:21.3]} 16...
Nc5 {[%clk 0:02:09.7]} 17. b4 {[%clk 0:02:09.8]} 17... Na4 {[%clk 0:01:58.6]}
18. Nxa4 {[%clk 0:02:05.4]} 18... Bxa4 {[%clk 0:01:57.6]} 19. c4 {[%clk
0:02:04.8]} 19... Bd7 {[%clk 0:01:55.2]} 20. Rad1 {[%clk 0:02:02.7]} 20... a6
{[%clk 0:01:48.6]} 21. c5 {[%clk 0:01:56.5]} 21... Ba4 {[%clk 0:01:45.9]} 22.
Rc1 {[%clk 0:01:56.1]} 22... dxc5 {[%clk 0:01:44.7]} 23. Rxc5 {[%clk 0:01:55.6]}
23... Bc6 {[%clk 0:01:44.5]} 24. e5 {[%clk 0:01:52.5]} 24... Qe6 {[%clk
0:01:44]} 25. Bxc6 {[%clk 0:01:50.5]} 25... bxc6 {[%clk 0:01:44.9]} 26. Qc3
{[%clk 0:01:44.8]} 26... Kg8 {[%clk 0:01:34.5]} 27. Rxc6 {[%clk 0:01:30.8]}
27... Qxh3 {[%clk 0:01:30.2]} 28. Rxc7 {[%clk 0:01:30.3]} 28... Re6 {[%clk
0:01:14.8]} 29. Rxf7 {[%clk 0:01:11.4]} 29... Kxf7 {[%clk 0:01:09.6]} 30. Qf3+
{[%clk 0:01:10.7]} 30... Qf5 {[%clk 0:00:59.5]} 31. Qxa8 {[%clk 0:01:10.3]}
31... Rxe5 {[%clk 0:00:59.6]} 32. Qa7+ {[%clk 0:01:04.5]} 32... Kg8 {[%clk
0:00:56.8]} 33. Qb8+ {[%clk 0:01:02.6]} 1-0

[Event "*** Titled Tuesday Blitz"]
[Site "Chess.com"]
[Date "2020.05.05"]
[Round "1"]
[White "AndrewMaco"]
[Black "PetrolulSah"]
[Result "0-1"]
[WhiteElo "2568"]
[BlackElo "2268"]
[TimeControl "180+1"]
[EndTime "10:05:52 PDT"]
[Termination "PetrolulSah won by resignation"]

1. e4 {[%clk 0:02:43.6]} 1... e5 {[%clk 0:02:59]} 2. Nf3 {[%clk 0:02:42.2]} 2...
Nf6 {[%clk 0:02:59]} 3. d4 {[%clk 0:02:38.1]} 3... Nxe4 {[%clk 0:02:57]} 4. dxe5
{[%clk 0:02:37.1]} 4... d5 {[%clk 0:02:48.7]} 5. Nbd2 {[%clk 0:02:35.8]} 5...
Bf5 {[%clk 0:02:40]} 6. Nb3 {[%clk 0:02:32.8]} 6... c5 {[%clk 0:02:32.9]} 7. Be2
{[%clk 0:02:25.2]} 7... Nc6 {[%clk 0:02:32.8]} 8. O-O {[%clk 0:02:25.2]} 8...
Be7 {[%clk 0:02:28]} 9. Re1 {[%clk 0:02:23.5]} 9... O-O {[%clk 0:02:27.7]} 10.
c3 {[%clk 0:02:18.7]} 10... Be6 {[%clk 0:02:09.2]} 11. Bf4 {[%clk 0:02:15.4]}
11... f6 {[%clk 0:02:05.1]} 12. exf6 {[%clk 0:02:01.3]} 12... Bxf6 {[%clk
0:02:04.3]} 13. Be3 {[%clk 0:01:42.9]} 13... Ne5 {[%clk 0:01:55]} 14. Nxc5
{[%clk 0:01:38.1]} 14... Nxc5 {[%clk 0:01:43.2]} 15. Bxc5 {[%clk 0:01:37.3]}
15... Rf7 {[%clk 0:01:43.3]} 16. Bd4 {[%clk 0:01:33.2]} 16... Ng4 {[%clk
0:01:34.4]} 17. Bd3 {[%clk 0:01:13.7]} 17... Bxd4 {[%clk 0:01:24.1]} 18. Nxd4
{[%clk 0:01:11.2]} 18... Qh4 {[%clk 0:01:16.2]} 19. Nf3 {[%clk 0:00:38.9]} 19...
Qxf2+ {[%clk 0:01:15.3]} 20. Kh1 {[%clk 0:00:39.3]} 20... Qb6 {[%clk 0:00:56.9]}
21. Qe2 {[%clk 0:00:36.9]} 21... Nf2+ {[%clk 0:00:52.3]} 22. Qxf2 {[%clk
0:00:34.8]} 22... Qxf2 {[%clk 0:00:50.3]} 23. Rxe6 {[%clk 0:00:34.4]} 23... Rxf3
{[%clk 0:00:48.8]} 0-1

[Event "*** Titled Tuesday Blitz"]
[Site "Chess.com"]
[Date "2020.05.05"]
[Round "1"]
[White "Hanging_pointer"]
[Black "Camels1981"]
[Result "1-0"]
[WhiteElo "2572"]
[BlackElo "2242"]
[TimeControl "180+1"]
[EndTime "10:05:55 PDT"]
[Termination "Hanging_pointer won by resignation"]

1. d4 {[%clk 0:02:56.2]} 1... Nf6 {[%clk 0:02:59.2]} 2. Bf4 {[%clk 0:02:53]}
2... g6 {[%clk 0:02:58.5]} 3. Nc3 {[%clk 0:02:50.9]} 3... Bg7 {[%clk 0:02:59.4]}
4. e4 {[%clk 0:02:49]} 4... d6 {[%clk 0:02:59.2]} 5. f3 {[%clk 0:02:47.9]} 5...
O-O {[%clk 0:02:59.5]} 6. Bc4 {[%clk 0:02:37.1]} 6... c5 {[%clk 0:02:59]} 7.
Nge2 {[%clk 0:02:35.6]} 7... cxd4 {[%clk 0:02:53.9]} 8. Nd5 {[%clk 0:02:30.9]}
8... Nc6 {[%clk 0:02:54.8]} 9. O-O {[%clk 0:02:14]} 9... Nxd5 {[%clk 0:02:50.9]}
10. exd5 {[%clk 0:02:06.8]} 10... Ne5 {[%clk 0:02:50.1]} 11. Bb3 {[%clk
0:02:04.9]} 11... Qb6 {[%clk 0:02:50.1]} 12. Kh1 {[%clk 0:02:03.1]} 12... Bd7
{[%clk 0:02:12.6]} 13. Nxd4 {[%clk 0:01:59]} 13... Rac8 {[%clk 0:02:12]} 14. c3
{[%clk 0:01:55.3]} 14... Nc4 {[%clk 0:02:09.5]} 15. Qe2 {[%clk 0:01:52.4]} 15...
Ne5 {[%clk 0:01:08.5]} 16. Bg5 {[%clk 0:01:51.3]} 16... Rfe8 {[%clk 0:01:06.5]}
17. f4 {[%clk 0:01:49.2]} 17... Ng4 {[%clk 0:01:06.4]} 18. f5 {[%clk 0:01:45.8]}
18... Bxd4 {[%clk 0:00:55]} 19. Qxg4 {[%clk 0:01:42.8]} 19... Bg7 {[%clk
0:00:52.6]} 20. Qf3 {[%clk 0:01:42.8]} 20... Bxf5 {[%clk 0:00:50.6]} 21. g4
{[%clk 0:01:35.7]} 21... Bd7 {[%clk 0:00:45.5]} 22. Qxf7+ {[%clk 0:01:34.2]}
22... Kh8 {[%clk 0:00:45.9]} 23. Bxe7 {[%clk 0:01:31.2]} 23... Bxg4 {[%clk
0:00:24.1]} 24. Rae1 {[%clk 0:01:29.1]} 24... Qc7 {[%clk 0:00:19.9]} 25. Rf4
{[%clk 0:01:17.8]} 25... Bf5 {[%clk 0:00:19.8]} 26. Rxf5 {[%clk 0:01:15.8]}
26... gxf5 {[%clk 0:00:19.4]} 27. Qxf5 {[%clk 0:01:11.6]} 27... Rb8 {[%clk
0:00:13.2]} 28. Bc2 {[%clk 0:01:09.3]} 1-0

[Event "*** Titled Tuesday Blitz"]
[Site "Chess.com"]
[Date "2020.05.05"]
[Round "1"]
[White "DonPreuss"]
[Black "GelmanAlexander"]
[Result "0-1"]
[WhiteElo "2184"]
[BlackElo "2533"]
[TimeControl "180+1"]
[EndTime "10:05:56 PDT"]
[Termination "GelmanAlexander won by resignation"]

1. d4 {[%clk 0:02:59.3]} 1... Nf6 {[%clk 0:02:59.1]} 2. Nc3 {[%clk 0:02:57.6]}
2... c5 {[%clk 0:02:56.5]} 3. d5 {[%clk 0:02:57.2]} 3... d6 {[%clk 0:02:56.6]}
4. e4 {[%clk 0:02:57.1]} 4... g6 {[%clk 0:02:56.7]} 5. f4 {[%clk 0:02:57.2]}
5... Bg7 {[%clk 0:02:56.5]} 6. Nf3 {[%clk 0:02:57.2]} 6... O-O {[%clk
0:02:56.2]} 7. Be2 {[%clk 0:02:50.4]} 7... e6 {[%clk 0:02:50.3]} 8. O-O {[%clk
0:02:28]} 8... exd5 {[%clk 0:02:49.3]} 9. Nxd5 {[%clk 0:02:27.8]} 9... Nxe4
{[%clk 0:02:40.4]} 10. Ng5 {[%clk 0:02:25.3]} 10... Nf6 {[%clk 0:02:18.1]} 11.
Bf3 {[%clk 0:02:06.1]} 11... Nc6 {[%clk 0:02:05.8]} 12. Qe1 {[%clk 0:01:58.9]}
12... Nd4 {[%clk 0:01:54.2]} 13. c4 {[%clk 0:01:56.8]} 13... h6 {[%clk
0:01:45.9]} 14. Qh4 {[%clk 0:01:47.7]} 14... hxg5 {[%clk 0:01:23.7]} 15. fxg5
{[%clk 0:01:47]} 15... Nxd5 {[%clk 0:01:21.5]} 16. Bxd5 {[%clk 0:01:46.8]} 16...
Be6 {[%clk 0:01:16.1]} 17. Bf4 {[%clk 0:01:20.9]} 17... Bxd5 {[%clk 0:01:13.8]}
18. cxd5 {[%clk 0:01:20.5]} 18... Ne2+ {[%clk 0:00:59.9]} 19. Kh1 {[%clk
0:01:19.4]} 19... Nxf4 {[%clk 0:01:00.4]} 20. Rxf4 {[%clk 0:01:19]} 20... Qe7
{[%clk 0:00:59.6]} 21. Raf1 {[%clk 0:01:17.6]} 21... Rae8 {[%clk 0:00:56.3]} 22.
R4f3 {[%clk 0:01:17.3]} 22... Qe4 {[%clk 0:00:53.7]} 23. Rf4 {[%clk 0:01:16.5]}
23... Qxd5 {[%clk 0:00:51.4]} 24. R4f3 {[%clk 0:01:08.8]} 24... Re4 {[%clk
0:00:51]} 25. Qf2 {[%clk 0:01:07.8]} 25... Bd4 {[%clk 0:00:46]} 26. Qg3 {[%clk
0:01:06.8]} 26... Qe5 {[%clk 0:00:43.7]} 27. Qh3 {[%clk 0:01:03.1]} 27... Re1
{[%clk 0:00:38.3]} 28. Qh6 {[%clk 0:01:02.1]} 28... Rxf1+ {[%clk 0:00:37.7]} 29.
Rxf1 {[%clk 0:01:02.1]} 29... Be3 {[%clk 0:00:35.3]} 30. h4 {[%clk 0:01:01.2]}
30... Qg7 {[%clk 0:00:30.5]} 0-1

[Event "*** Titled Tuesday Blitz"]
[Site "Chess.com"]
[Date "2020.05.05"]
[Round "1"]
[White "Shota_Azaladze"]
[Black "LogoCzar"]
[Result "1-0"]
[WhiteElo "2686"]
[BlackElo "2353"]
[TimeControl "180+1"]
[EndTime "10:06:00 PDT"]
[Termination "Shota_Azaladze won by resignation"]

1. Nf3 {[%clk 0:03:00.9]} 1... d5 {[%clk 0:02:59.4]} 2. g3 {[%clk 0:03:01.3]}
2... Nc6 {[%clk 0:02:59.6]} 3. Bg2 {[%clk 0:03:01.8]} 3... e5 {[%clk 0:02:59.9]}
4. d3 {[%clk 0:03:02.1]} 4... f5 {[%clk 0:03:00.2]} 5. O-O {[%clk 0:03:01.8]}
5... Nf6 {[%clk 0:03:00.7]} 6. Nc3 {[%clk 0:03:01.7]} 6... e4 {[%clk 0:02:59.9]}
7. dxe4 {[%clk 0:02:58.5]} 7... fxe4 {[%clk 0:03:00.8]} 8. Nd4 {[%clk
0:02:58.3]} 8... Nxd4 {[%clk 0:03:00.8]} 9. Qxd4 {[%clk 0:02:59.2]} 9... c6
{[%clk 0:03:01.2]} 10. f3 {[%clk 0:02:53.8]} 10... exf3 {[%clk 0:02:58.8]} 11.
exf3 {[%clk 0:02:53.4]} 11... Be7 {[%clk 0:02:57.6]} 12. Re1 {[%clk 0:02:46.2]}
12... O-O {[%clk 0:02:56.9]} 13. Bg5 {[%clk 0:02:46.1]} 13... h6 {[%clk
0:02:54.8]} 14. Be3 {[%clk 0:02:42.1]} 14... Bf5 {[%clk 0:02:09.4]} 15. Qd2
{[%clk 0:02:40.7]} 15... c5 {[%clk 0:01:58.8]} 16. Bf2 {[%clk 0:02:30.7]} 16...
d4 {[%clk 0:01:57.4]} 17. Nb5 {[%clk 0:02:29.3]} 17... a6 {[%clk 0:01:55.4]} 18.
Na3 {[%clk 0:02:29.3]} 18... b5 {[%clk 0:01:51.5]} 19. c3 {[%clk 0:02:07.6]}
19... dxc3 {[%clk 0:01:22.6]} 20. Qxc3 {[%clk 0:02:06.4]} 20... Kh8 {[%clk
0:01:06.9]} 21. Rad1 {[%clk 0:02:04.3]} 21... Qc7 {[%clk 0:01:05]} 22. Qe5
{[%clk 0:02:01.3]} 22... Qxe5 {[%clk 0:00:53]} 23. Rxe5 {[%clk 0:02:02.2]} 23...
Rfd8 {[%clk 0:00:51.3]} 24. Rxd8+ {[%clk 0:01:54.1]} 24... Rxd8 {[%clk
0:00:50.4]} 25. Rxe7 {[%clk 0:01:53.9]} 25... Rd2 {[%clk 0:00:46.1]} 26. Bxc5
{[%clk 0:01:52]} 26... Rxb2 {[%clk 0:00:46.1]} 27. g4 {[%clk 0:01:49.1]} 27...
Bd3 {[%clk 0:00:44.8]} 28. Bf1 {[%clk 0:01:40.5]} 28... Bxf1 {[%clk 0:00:38.1]}
29. Kxf1 {[%clk 0:01:41.4]} 29... Nd5 {[%clk 0:00:37.8]} 30. Ra7 {[%clk
0:01:38.9]} 30... Nf4 {[%clk 0:00:32]} 31. Rxa6 {[%clk 0:01:31.8]} 31... Rxh2
{[%clk 0:00:29.8]} 32. Nxb5 {[%clk 0:01:29.6]} 32... Rh1+ {[%clk 0:00:21.5]} 33.
Kf2 {[%clk 0:01:28.1]} 33... Rb1 {[%clk 0:00:21.5]} 34. Bd6 {[%clk 0:01:18.1]}
34... Nd3+ {[%clk 0:00:17.4]} 35. Ke3 {[%clk 0:01:18]} 35... Rxb5 {[%clk
0:00:17]} 36. Kxd3 {[%clk 0:01:17.9]} 1-0

[Event "*** Titled Tuesday Blitz"]
[Site "Chess.com"]
[Date "2020.05.05"]
[Round "1"]
[White "NikolaGry"]
[Black "Leo_C"]
[Result "1-0"]
[WhiteElo "2605"]
[BlackElo "2281"]
[TimeControl "180+1"]
[EndTime "10:06:00 PDT"]
[Termination "NikolaGry won by checkmate"]

1. e4 {[%clk 0:03:00.5]} 1... c6 {[%clk 0:02:59.4]} 2. d4 {[%clk 0:02:59.5]}
2... d5 {[%clk 0:03:00]} 3. f3 {[%clk 0:02:57.7]} 3... e6 {[%clk 0:02:56.8]} 4.
Nc3 {[%clk 0:02:56.9]} 4... Nf6 {[%clk 0:02:56.6]} 5. Nge2 {[%clk 0:02:54.3]}
5... Bb4 {[%clk 0:02:56]} 6. a3 {[%clk 0:02:51.6]} 6... Ba5 {[%clk 0:02:55.9]}
7. b4 {[%clk 0:02:43.1]} 7... Bc7 {[%clk 0:02:55.6]} 8. e5 {[%clk 0:02:43.2]}
8... Nfd7 {[%clk 0:02:55.1]} 9. f4 {[%clk 0:02:43.2]} 9... b6 {[%clk 0:02:54.4]}
10. Ng3 {[%clk 0:02:40.3]} 10... c5 {[%clk 0:02:54.2]} 11. Nb5 {[%clk
0:02:39.3]} 11... cxd4 {[%clk 0:02:51.9]} 12. Bd3 {[%clk 0:02:32.3]} 12... Nc6
{[%clk 0:02:51]} 13. O-O {[%clk 0:02:08.8]} 13... g6 {[%clk 0:02:38.6]} 14. Bb2
{[%clk 0:02:06.2]} 14... Bb8 {[%clk 0:02:27.5]} 15. Nxd4 {[%clk 0:01:53.1]}
15... Nxd4 {[%clk 0:02:27.3]} 16. Bxd4 {[%clk 0:01:52.7]} 16... a5 {[%clk
0:02:22.4]} 17. c3 {[%clk 0:01:50.6]} 17... O-O {[%clk 0:02:18.1]} 18. Qe2
{[%clk 0:01:43.4]} 18... Bb7 {[%clk 0:02:12.2]} 19. f5 {[%clk 0:01:26.7]} 19...
exf5 {[%clk 0:02:10.4]} 20. Nxf5 {[%clk 0:01:24.3]} 20... gxf5 {[%clk
0:01:59.8]} 21. Bxf5 {[%clk 0:01:22.5]} 21... Nxe5 {[%clk 0:01:29.4]} 22. Bxe5
{[%clk 0:01:06]} 22... Bxe5 {[%clk 0:01:30.3]} 23. Qh5 {[%clk 0:00:40.5]} 23...
Bxh2+ {[%clk 0:00:54.2]} 24. Kh1 {[%clk 0:00:37.1]} 24... Kg7 {[%clk 0:00:45.9]}
25. Qxh7+ {[%clk 0:00:30]} 25... Kf6 {[%clk 0:00:45.1]} 26. Qh6+ {[%clk
0:00:29.9]} 26... Ke5 {[%clk 0:00:43.1]} 27. Rae1# {[%clk 0:00:28.8]} 1-0

[Event "*** Titled Tuesday Blitz"]
[Site "Chess.com"]
[Date "2020.05.05"]
[Round "1"]
[White "BillieKimbah"]
[Black "NormWeinstein"]
[Result "1-0"]
[WhiteElo "2864"]
[BlackElo "2442"]
[TimeControl "180+1"]
[EndTime "10:06:01 PDT"]
[Termination "BillieKimbah won on time"]

1. d4 {[%clk 0:03:00.9]} 1... Nf6 {[%clk 0:02:59]} 2. c4 {[%clk 0:03:00.7]} 2...
g6 {[%clk 0:02:59.3]} 3. Nc3 {[%clk 0:02:59.6]} 3... Bg7 {[%clk 0:02:58.9]} 4.
e4 {[%clk 0:02:59.5]} 4... O-O {[%clk 0:02:59]} 5. Be2 {[%clk 0:02:59]} 5... c5
{[%clk 0:02:59]} 6. Nf3 {[%clk 0:02:56.6]} 6... d6 {[%clk 0:02:58.7]} 7. O-O
{[%clk 0:02:53.9]} 7... Bg4 {[%clk 0:02:58.4]} 8. d5 {[%clk 0:02:51.5]} 8... e6
{[%clk 0:02:58.1]} 9. dxe6 {[%clk 0:02:45]} 9... Bxe6 {[%clk 0:02:57.2]} 10. Bf4
{[%clk 0:02:43.6]} 10... Qb6 {[%clk 0:02:54.9]} 11. Qd2 {[%clk 0:02:29.3]} 11...
Nc6 {[%clk 0:02:51.9]} 12. Rad1 {[%clk 0:02:27.7]} 12... Bg4 {[%clk 0:02:39.1]}
13. Bxd6 {[%clk 0:02:00.6]} 13... Rfd8 {[%clk 0:02:24.7]} 14. Na4 {[%clk
0:01:59.9]} 14... Qb4 {[%clk 0:01:28.6]} 15. Qxb4 {[%clk 0:01:41.6]} 15... cxb4
{[%clk 0:01:28.4]} 16. e5 {[%clk 0:01:25.9]} 16... Ne8 {[%clk 0:01:07.6]} 17. h3
{[%clk 0:01:21.3]} 17... Bxf3 {[%clk 0:01:06.5]} 18. Bxf3 {[%clk 0:01:22.2]}
18... Nxe5 {[%clk 0:01:03.6]} 19. Bxb7 {[%clk 0:01:16.8]} 19... Nxd6 {[%clk
0:00:32.6]} 20. Bxa8 {[%clk 0:01:15.4]} 20... Nexc4 {[%clk 0:00:31.9]} 21. Bf3
{[%clk 0:00:52.4]} 1-0

[Event "*** Titled Tuesday Blitz"]
[Site "Chess.com"]
[Date "2020.05.05"]
[Round "1"]
[White "Bagirova"]
[Black "MikhailovViacheslav"]
[Result "0-1"]
[WhiteElo "2198"]
[BlackElo "2544"]
[TimeControl "180+1"]
[EndTime "10:06:03 PDT"]
[Termination "MikhailovViacheslav won by resignation"]

1. d4 {[%clk 0:03:00.9]} 1... Nf6 {[%clk 0:02:59.3]} 2. Nf3 {[%clk 0:03:01.4]}
2... g6 {[%clk 0:02:59.3]} 3. Bf4 {[%clk 0:03:01.9]} 3... Bg7 {[%clk 0:02:59.4]}
4. e3 {[%clk 0:03:02.5]} 4... O-O {[%clk 0:02:59.6]} 5. Be2 {[%clk 0:03:02.5]}
5... d6 {[%clk 0:03:00]} 6. h3 {[%clk 0:03:02.5]} 6... c5 {[%clk 0:02:59.6]} 7.
c3 {[%clk 0:03:02]} 7... Nc6 {[%clk 0:02:59.7]} 8. O-O {[%clk 0:03:01.8]} 8...
Qb6 {[%clk 0:02:58.7]} 9. Qb3 {[%clk 0:03:00]} 9... Be6 {[%clk 0:02:58.6]} 10.
Qxb6 {[%clk 0:02:53.2]} 10... axb6 {[%clk 0:02:59.5]} 11. a3 {[%clk 0:02:48.3]}
11... Rfc8 {[%clk 0:02:46.4]} 12. Nbd2 {[%clk 0:02:46.4]} 12... h6 {[%clk
0:02:35.6]} 13. Bh2 {[%clk 0:02:46.1]} 13... d5 {[%clk 0:02:28.5]} 14. Ne5
{[%clk 0:02:42.7]} 14... Nd7 {[%clk 0:02:13.2]} 15. Nd3 {[%clk 0:02:33.5]} 15...
Bf5 {[%clk 0:02:07.5]} 16. Rfe1 {[%clk 0:02:28.1]} 16... g5 {[%clk 0:02:03.1]}
17. Rad1 {[%clk 0:02:10.2]} 17... c4 {[%clk 0:01:56.7]} 18. Nb4 {[%clk
0:01:58.2]} 18... Nxb4 {[%clk 0:01:56.4]} 19. cxb4 {[%clk 0:01:38.6]} 19... c3
{[%clk 0:01:48.7]} 20. bxc3 {[%clk 0:01:38.1]} 20... Rxc3 {[%clk 0:01:46.1]} 21.
Rc1 {[%clk 0:01:37.7]} 21... Raxa3 {[%clk 0:01:42.8]} 22. b5 {[%clk 0:01:25.4]}
22... Rxc1 {[%clk 0:01:37.9]} 23. Rxc1 {[%clk 0:01:26.3]} 23... Ra2 {[%clk
0:01:37.9]} 24. Rd1 {[%clk 0:01:12.3]} 24... Nf6 {[%clk 0:01:32.3]} 25. Bf1
{[%clk 0:01:08.6]} 25... e6 {[%clk 0:01:20.5]} 26. Bc7 {[%clk 0:01:02.7]} 26...
Bf8 {[%clk 0:01:12.8]} 27. Bxb6 {[%clk 0:00:50.7]} 27... Bc2 {[%clk 0:01:12.7]}
28. Rc1 {[%clk 0:00:47.9]} 28... Ba3 {[%clk 0:01:10.6]} 29. Re1 {[%clk
0:00:47.6]} 29... Bb4 {[%clk 0:01:10.3]} 30. Re2 {[%clk 0:00:38.1]} 30... Bd3
{[%clk 0:01:02.5]} 31. Bd8 {[%clk 0:00:35.4]} 31... Bxe2 {[%clk 0:01:00]} 32.
Bxf6 {[%clk 0:00:34.4]} 32... Rxd2 {[%clk 0:00:58.5]} 33. Bxe2 {[%clk
0:00:34.1]} 33... Rxe2 {[%clk 0:00:58.5]} 0-1